Workbook

Sheet Instructions
B2: HOW TO USE THE DYNAMIC TOTAL COST OF OWNERSHIP DASHBOARD
B4: All cells highlighted Green are Input cells. Values can only be edited in these cells to observe the dynamic changes in the dashboard on the right.
B6: All cells highlighted Gray are Fixed cells. These values cannot be edited.
B9: CELL NAME | E9: FUNCTION | F9: ACTION REQUIRED
B10: Vehicle Holding Period (Year) | E10: Editable | F10: Use the drop down menu on Cell C5 to choose the Vehicle holding period from 1 to 10 years
B11: Daily Distance Travelled (km) | E11: Editable | F11: Use the arrows on the right to increase/decrease to input Daily Distance Travelled in km
B12: Daily Distance Travelled (mi) | E12: Fixed
B13: Annual Distance Travelled (km) | E13: Fixed
B14: Annual Distance Travelled (mi) | E14: Fixed
B16: Vehicle Purchase Cost | E16: Editable | F16: Add number values to input the purchase cost of a HCFV
B17: Tax | E17: Editable | F17: Add number values to input Tax levied on the HCFV
B18: Annual Insurance Cost | E18: Editable | F18: Add number values to input Annual Insurance cost of the HCFV
B19: Financial Incentive | E19: Editable | F19: Add number values to input Total incentives including FAME subsidy & other miscellaneous incentives
B21: Discount Rate | E21: Editable | F21: Add percentage values to input the present value of future cash flows at the end of holding period
B22: Resale Rate | E22: Editable | F22: Add percentage values to input the resale value of the HCFV at the end of holding period
B24: Terms of Payment | E24: Editable | F24: Add number values to input the Total number of years of loan repayment
B25: Interest Rate | E25: Editable | F25: Add percentage values to input prevailing interest on HCFV Loans
B26: Equity | E26: Editable | F26: Add percentage values to input initial equity payment made for the purchase of the HCFV
B27: Monthly EMI | E27: Fixed
B28: Charging Infrastructure Cost | E28: Editable | F28: Add number values to input the Total cost of Charging Infrastructure
B30: Staff cost per Month | E30: Editable | F30: Add number values to input Total Staff cost incurred in a month
B31: Lithium-Ion Battery Cost | E31: Editable | F31: Add number values to input prevailing cost of Li-Ion battery in USD per kWh
B33: Fuel Cost | E33: Editable | F33: Add number values to input Total cost per unit of Fuel (in associated fuel units)
B34: Capacity of Battery | E34: Editable | F34: Add number values to input capacity of battery for Electric HCFVs in kWh
B35: Number of Battery Replacements | E35: Editable | F35: Add number values to input total number of battery replacements for Electric HCFV
B36: Mileage | E36: Editable | F36: Add number values to input mileage of different models of HCFVs
B37: Annual Maintenance Cost | E37: Editable | F37: Add number values to input the Annual Maintenance cost of an HCFV
B40: NOTES
B43: 1. For more details regarding Methodology and TCO calculations, please refer to the research paper. Total Cost of Ownership Analysis of the Impact of Vehicle Usage on the Economic Viability of Electric Vehicles in India, P. Kumar and S. Chakrabarty Transport. Res. Rec., 2020 (1-10)

Sheet HCFV TCO Dashboard
AK1: 10 YEAR | AL1: TCO | AR1: DYNAMIC | AS1: TCO
AK2: e-HCFV (LT) | AL2: =TCO_1!C11 -> 31.69107427 | AR2: e-HCFV (LT) | AS2: =VLOOKUP($C$5,$AR$10:$AV$20,2,0) -> 45.5263551
AK3: e-HCFV (HT) | AL3: =TCO_1!D11 -> 48.08851862 | AR3: e-HCFV (HT) | AS3: =VLOOKUP($C$5,$AR$10:$AV$20,3,0) -> 70.27136055
AK4: D-HCFV (LT) | AL4: =TCO_1!E11 -> 27.63511408 | AR4: D-HCFV (LT) | AS4: =VLOOKUP($C$5,$AR$10:$AV$20,4,0) -> 36.77672214
B5: Vehicle Holding Period (Year) | C5: 5 | D5: Use Drop down to choose Holding Period | AK5: D-HCFV (HT) | AL5: =TCO_1!F11 -> 35.18538536 | AR5: D-HCFV (HT) | AS5: =VLOOKUP($C$5,$AR$10:$AV$20,5,0) -> 46.5403297
B7: Daily Distance Travelled (km) | C7: 300 | E7: (Use Arrows to input Distance)
B8: Daily Distance Travelled (mi) | C8: =C7*0.621371 -> 186.4113
B10: Annual Distance Travelled (km) | C10: =C7*315 -> 94500 | AK10: Operational Years | AL10: e-HCFV (LT) | AM10: e-HCFV (HT) | AN10: D-HCFV (LT) | AO10: D-HCFV (HT) | AS10: e-HCFV (LT) | AT10: e-HCFV (HT) | AU10: D-HCFV (LT) | AV10: D-HCFV (HT)
B11: Annual Distance Travelled (mi) | C11: =C8*315 -> 58719.5595 | AK11: Year 1 | AL11: =TCO_1!C31 -> 139.5727677 | AM11: =TCO_1!C34 -> 228.3132272 | AN11: =TCO_1!C37 -> 78.75998258 | AO11: =TCO_1!C40 -> 96.25897129 | AR11: 1 | AS11: =IF($C$5=AR11,AL11:AO11,) -> 0
AK12: Year 2 | AL12: =TCO_1!D31 -> 81.70861746 | AM12: =TCO_1!D34 -> 130.6218393 | AN12: =TCO_1!D37 -> 54.18686798 | AO12: =TCO_1!D40 -> 67.38270106 | AR12: 2 | AS12: =IF($C$5=AR12,AL12:AO12,) -> 0
AK13: Year 3 | AL13: =TCO_1!E31 -> 61.98495038 | AM13: =TCO_1!E34 -> 97.53977942 | AN13: =TCO_1!E37 -> 45.20717819 | AO13: =TCO_1!E40 -> 56.71731954 | AR13: 3 | AS13: =IF($C$5=AR13,AL13:AO13,) -> 0
AK14: Year 4 | AL14: =TCO_1!F31 -> 51.82982751 | AM14: =TCO_1!F34 -> 80.65169533 | AN14: =TCO_1!F37 -> 40.18113215 | AO14: =TCO_1!F40 -> 50.67733556 | AR14: 4 | AS14: =IF($C$5=AR14,AL14:AO14,) -> 0
C15: INR | AK15: Year 5 | AL15: =TCO_1!G31 -> 45.5263551 | AM15: =TCO_1!G34 -> 70.27136055 | AN15: =TCO_1!G37 -> 36.77672214 | AO15: =TCO_1!G40 -> 46.5403297 | AR15: 5 | AS15: =IF($C$5=AR15,AL15:AO15,) -> 45.5263551 | AT15: 70.27136055 | AU15: 36.77672214 | AV15: 46.5403297
AK16: Year 6 | AL16: =TCO_1!H31 -> 41.16699998 | AM16: =TCO_1!H34 -> 63.16763614 | AN16: =TCO_1!H37 -> 34.21354148 | AO16: =TCO_1!H40 -> 43.39479593 | AR16: 6 | AS16: =IF($C$5=AR16,AL16:AO16,) -> 0
AK17: Year 7 | AL17: =TCO_1!I31 -> 37.93276332 | AM17: =TCO_1!I34 -> 57.95387623 | AN17: =TCO_1!I37 -> 32.15473634 | AO17: =TCO_1!I40 -> 40.84694509 | AR17: 7 | AS17: =IF($C$5=AR17,AL17:AO17,) -> 0
AK18: Year 8 | AL18: =TCO_1!J31 -> 35.41296275 | AM18: =TCO_1!J34 -> 53.93526537 | AN18: =TCO_1!J37 -> 30.42997477 | AO18: =TCO_1!J40 -> 38.69738097 | AR18: 8 | AS18: =IF($C$5=AR18,AL18:AO18,) -> 0
B19: MODEL | C19: e-HCFV (LT) | D19: e-HCFV (HT) | E19: D-HCFV (LT) | F19: D-HCFV (HT) | AK19: Year 9 | AL19: =TCO_1!K31 -> 33.37848404 | AM19: =TCO_1!K34 -> 50.72458646 | AN19: =TCO_1!K37 -> 28.94308793 | AO19: =TCO_1!K40 -> 36.83330566 | AR19: 9 | AS19: =IF($C$5=AR19,AL19:AO19,) -> 0
B20: =VLOOKUP($C$15,Currency!$B$17:$C$19,2,0) -> Vehicle Purchase Cost (₹) | C20: 7000000 | D20: 11050000 | E20: 3370000 | F20: 3941000 | AK20: Year 10 | AL20: =TCO_1!L31 -> 31.69107427 | AM20: =TCO_1!L34 -> 48.08851862 | AN20: =TCO_1!L37 -> 27.63511408 | AO20: =TCO_1!L40 -> 35.18538536 | AR20: 10 | AS20: =IF($C$5=AR20,AL20:AO20,) -> 0
B21: =VLOOKUP($C$15,Currency!$B$21:$C$23,2,0) -> Road Tax (₹) | C21: 0 | D21: 0 | E21: 44147 | F21: 42545
B22: =VLOOKUP($C$15,Currency!$B$25:$C$27,2,0) -> Insurance cost (₹) | C22: 67050 | D22: 98550 | E22: 47965 | F22: 54249
B23: =VLOOKUP($C$15,Currency!$B$29:$C$31,2,0) -> Financial Incentive (₹) | C23: 0 | D23: 0 | AL23: e-HCFV (LT) | AM23: e-HCFV (HT) | AN23: D-HCFV (LT) | AO23: D-HCFV (HT)
B25: Discount Rate (%) | C25: 0.1 | D25: 0.1 | E25: 0.1 | F25: 0.1
B26: Resale Rate (%) | C26: 0.2 | D26: 0.2 | E26: 0.1 | F26: 0.1
B28: =VLOOKUP($C$15,Currency!$B$45:$C$47,2,0) -> Financing Component (₹) | AK28: Total Fixed Cost | AL28: =TCO_1!C10/TCO_1!C9 -> 19.5934815 | AM28: =TCO_1!D10/TCO_1!D9 -> 32.98409922 | AN28: =TCO_1!E10/TCO_1!E9 -> 7.711293467 | AO28: =TCO_1!F10/TCO_1!F9 -> 8.99977621
B29: Term of Payment (Years) | C29: 7 | D29: 7 | E29: 7 | F29: 7
B30: Interest Rate (%) | C30: 0.08 | D30: 0.08 | E30: 0.11 | F30: 0.11 | AK30: Total Variable Cost | AL30: =TCO_1!L22/TCO_1!C9 -> 12.09759277 | AM30: =TCO_1!L23/TCO_1!D9 -> 15.1044194 | AN30: =TCO_1!L24/TCO_1!E9 -> 19.92382061 | AO30: =TCO_1!L25/TCO_1!F9 -> 26.18560915
B31: Equity (%) | C31: 0.2 | D31: 0.2 | E31: 0.2 | F31: 0.2 | AK31: Total TCO | AL31: =SUM(AL28:AL30) -> 31.69107427 | AM31: =SUM(AM28:AM30) -> 48.08851862 | AN31: =SUM(AN28:AN30) -> 27.63511408 | AO31: =SUM(AO28:AO30) -> 35.18538536
B32: =VLOOKUP($C$15,Currency!$B$49:$C$51,2,0) -> Monthly EMI (₹) | C32: =Financing!B12 -> 87616.13399 | D32: =Financing!C12 -> 138308.3258 | E32: =Financing!D12 -> 46322.56482 | F32: =Financing!E12 -> 54171.28426
B33: =VLOOKUP($C$15,Currency!$B$53:$C$55,2,0) -> Charging Infrastructure Cost (₹) | C33: 3231000 | D33: 6300000
AK36: Cost Components | AL36: e-HCFV (LT) | AM36: e-HCFV (HT) | AN36: D-HCFV (LT) | AO36: D-HCFV (HT)
AK37: Fixed | AL37: =Summary!B18 -> 12057805.26 | AM37: =Summary!C18 -> 20226449.37 | AN37: =Summary!D18 -> 4657207.445 | AO37: =Summary!E18 -> 5435381.878
AK38: Maintenance | AL38: =Summary!B22 -> 30500 | AM38: =Summary!C22 -> 32000 | AN38: =Summary!D22 -> 61172 | AO38: =Summary!E22 -> 63000
B39: =VLOOKUP($C$15,Currency!$B$33:$C$35,2,0) -> Staff Cost per Month (₹) | C39: 50000 | AK39: Battery Replacement | AL39: =Summary!B23 -> 420042 | AM39: =Summary!C23 -> 660066 | AN39: =Summary!D23 -> 0 | AO39: =Summary!E23 -> 0
B40: Lithium-Ion Battery Cost (USD/kWh) | C40: 137
AK41: Fuel | AL41: =Summary!B24 -> 810000 | AM41: =Summary!C24 -> 1030909.091 | AN41: =Summary!D24 -> 2403000 | AO41: =Summary!E24 -> 3364200
B42: MODEL | C42: e-HCFV (LT) | D42: e-HCFV (HT) | E42: D-HCFV (LT) | F42: D-HCFV (HT)
B43: =VLOOKUP($C$15,Currency!$B$37:$C$39,2,0) -> Fuel cost (₹/kWh; ₹/L) | C43: 6 | D43: 6 | E43: 89 | F43: 89 | AL43: e-HCFV (LT) | AM43: e-HCFV (HT) | AN43: D-HCFV (LT) | AO43: D-HCFV (HT)
B44: Capacity of Battery (kWh) | C44: 350 | D44: 550
B45: Number of Battery Replacements | C45: 1 | D45: 1
B46: Mileage (km/kWh; km/L) | C46: 0.7 | D46: 0.55 | E46: 3.5 | F46: 2.5
B47: =VLOOKUP($C$15,Currency!$B$41:$C$43,2,0) -> Annual Maintenance Cost (₹) | C47: 30500 | D47: 32000 | E47: 61172 | F47: 63000 | AK47: Fixed Cost | AL47: =AL28/AL31 -> 0.618264983 | AM47: =AM28/AM31 -> 0.6859038325 | AN47: 0.2790396828 | AO47: 0.2557816581
AK48: Variable Cost | AL48: =AL30/AL31 -> 0.381735017 | AM48: =AM30/AM31 -> 0.3140961675 | AN48: 0.7209603172 | AO48: 0.7442183419
B52: NOTES | AL52: =SUM(AL47:AL51) -> 1 | AM52: =SUM(AM47:AM51) -> 1 | AN52: =SUM(AN47:AN51) -> 1 | AO52: =SUM(AO47:AO51) -> 1
B54: 1. Model Key
B55: e-HCFV (LT) = Electric Heavy Commercial Freight Vehicle - Low Tonnage (28 Ton)
B56: e-HCFV (LT) = Electric Heavy Commercial Freight Vehicle - High Tonnage (55 Ton)
B57: D-HCFV (LT) = Diesel Heavy Commercial Freight Vehicle - Low Tonnage (28 Ton)
B58: D-HCFV (HT) = Diesel Heavy Commercial Freight Vehicle - High Tonnage (55 Ton)
B60: 2. Financial Incentives can be added by referencing Department of Heavy Industry's website
B61: https://fame2.heavyindustry.gov.in/ModelUnderFame.aspx

Sheet Summary
A1: TRAVEL DETAILS
A2: Number of Vehicle | B2: 1
A3: Life of Vehicle (yrs) | B3: 10
A4: Annual drive distance (KM) | B4: ='HCFV TCO Dashboard'!C10 -> 94500
A5: Total Distance Travel (KM) | B5: =B3*B4 -> 945000
A6: LIB Cost (USD/kWh) | B6: ='HCFV TCO Dashboard'!C40 -> 137
A7: USD to INR | B7: 73
A8: General Inputs | B8: e-HCFV (LT) | C8: e-HCFV (HT) | D8: D-HCFV (LT) | E8: D-HCFV (HT)
A9: Discount rate (%) | B9: ='HCFV TCO Dashboard'!C25 -> 0.1 | C9: ='HCFV TCO Dashboard'!D25 -> 0.1 | D9: ='HCFV TCO Dashboard'!E25 -> 0.1 | E9: ='HCFV TCO Dashboard'!F25 -> 0.1
A10: Resale rate (%) | B10: ='HCFV TCO Dashboard'!C26 -> 0.2 | C10: ='HCFV TCO Dashboard'!D26 -> 0.2 | D10: ='HCFV TCO Dashboard'!E26 -> 0.1 | E10: ='HCFV TCO Dashboard'!F26 -> 0.1
A12: Capital Cost | B12: e-HCFV (LT) | C12: e-HCFV (HT) | D12: D - HCFV (LT) | E12: D - HCFV (HT)
A13: Total Vehicle Cost (₹) | B13: ='Capital Cost'!B8 -> 8826805.255 | C13: ='Capital Cost'!C8 -> 13926449.37 | D13: ='Capital Cost'!D8 -> 4657207.445 | E13: ='Capital Cost'!E8 -> 5435381.878
A14: Resale Value (₹) | B14: =B13*B10 -> 1765361.051 | C14: =C13*C10 -> 2785289.873 | D14: =D13*D10 -> 465720.7445 | E14: =E13*E10 -> 543538.1878
A15: Total Charging Infrastructure Cost (₹/Vehicle) | B15: ='HCFV TCO Dashboard'!C33/Summary!B2 -> 3231000 | C15: ='HCFV TCO Dashboard'!D33/Summary!B2 -> 6300000 | D15: ='Capital Cost'!D19/B2 -> 0 | E15: ='Capital Cost'!E19/B2 -> 0
A16: Misc. Cost (₹) | B16: 0 | C16: 0 | D16: 0 | E16: 0
A17: Financial Incentive (₹) | B17: ='HCFV TCO Dashboard'!C23 -> 0 | C17: ='HCFV TCO Dashboard'!D23 -> 0 | D17: 0 | E17: 0
A18: Total Capital Cost (₹) excl. Resale Value | B18: =(B13+B15+B16)-B17 -> 12057805.26 | C18: =(C13+C15+C16)-C17 -> 20226449.37 | D18: 4657207.445 | E18: 5435381.878
A20: Annual Operational Cost | B20: e-HCFV (LT) | C20: e-HCFV (HT) | D20: D-HCFV (LT) | E20: D-HCFV (HT)
A21: Staff Cost (₹) | B21: ='Operational Cost'!B4 -> 600000 | C21: ='Operational Cost'!C4 -> 600000 | D21: ='Operational Cost'!D4 -> 600000 | E21: ='Operational Cost'!E4 -> 600000
A22: Maintenance Cost (₹) | B22: ='Operational Cost'!B18 -> 30500 | C22: ='Operational Cost'!C18 -> 32000 | D22: ='Operational Cost'!D18 -> 61172 | E22: ='Operational Cost'!E18 -> 63000
A23: Battery Replacement Cost (₹)* | B23: ='Operational Cost'!B27/B3 -> 420042 | C23: ='Operational Cost'!C27/B3 -> 660066 | D23: ='Operational Cost'!D27/B3 -> 0
A24: Average Fuel Cost (₹) | B24: ='Operational Cost'!B11 -> 810000 | C24: ='Operational Cost'!C11 -> 1030909.091 | D24: ='Operational Cost'!D11 -> 2403000 | E24: ='Operational Cost'!E11 -> 3364200
A25: Misc. Cost (₹) | B25: 0 | C25: 0 | D25: 0 | E25: 0
A26: Total Operational Cost (₹) | B26: =(SUM(B21:B25)) -> 1860542 | C26: =(SUM(C21:C25)) -> 2322975.091 | D26: =(SUM(D21:D25)) -> 3064172 | E26: =(SUM(E21:E25)) -> 4027200
A28: Total Operational Cost for life of HCFV | B28: =B26*$B$3 -> 18605420 | C28: =C26*$B$3 -> 23229750.91 | D28: =D26*$B$3 -> 30641720 | E28: =E26*$B$3 -> 40272000
A29: Average TCO | B29: =TCO_1!C11 -> 31.69107427 | C29: =TCO_1!D11 -> 48.08851862 | D29: =TCO_1!E11 -> 27.63511408 | E29: =TCO_1!F11 -> 35.18538536

Sheet Currency (hidden)
B2: CURRENCY CONVERSION
B4: USD | C4: INR | D4: Conversion
B5: 1 | C5: 73 | D5: =B5*C5 -> 73
B7: EURO | C7: INR | D7: Conversion
B8: 1 | C8: 82 | D8: =B8*C8 -> 82
B16: DROP DOWN | E16: DASHBOARD TITLE | H16: Gallon Calculation | K16: DASHBOARD TITLE 2
B17: INR | C17: =IF(B17='HCFV TCO Dashboard'!$C$15,"Vehicle Purchase Cost (₹)","") -> Vehicle Purchase Cost (₹) | E17: INR | F17: =IF(E17='HCFV TCO Dashboard'!C15,"TCO BY MODELS AT YEAR 10 (₹ / km)","") -> TCO BY MODELS AT YEAR 10 (₹ / km) | H17: USD | K17: 1 | L17: =IF('HCFV TCO Dashboard'!$C$5=Currency!K17,"TCO AT YEAR 1","") -> 
B18: USD | C18: =IF(B18='HCFV TCO Dashboard'!$C$15,"Vehicle Purchase Cost ($)","") ->  | E18: USD | F18: =IF(E18='HCFV TCO Dashboard'!C15,"TCO BY MODELS AT YEAR 10 ($ / mi)","") ->  | H18: Gallon Calculation | I18: =IF('[1]Dynamic Ranges for 2W'!$C$15=H17,'[1]Dynamic Ranges for 2W'!F38*3.78,"-") -> - | K18: 2 | L18: =IF('HCFV TCO Dashboard'!$C$5=Currency!K18,"TCO AT YEAR 2","") -> 
B19: EURO | C19: =IF(B19='HCFV TCO Dashboard'!$C$15,"Vehicle Purchase Cost (€)","") ->  | E19: EURO | F19: =IF(E19='HCFV TCO Dashboard'!C15,"TCO BY MODEL AT YEAR 10 (€ / km)","") ->  | K19: 3 | L19: =IF('HCFV TCO Dashboard'!$C$5=Currency!K19,"TCO AT YEAR 3","") -> 
K20: 4 | L20: =IF('HCFV TCO Dashboard'!$C$5=Currency!K20,"TCO AT YEAR 4","") -> 
B21: INR | C21: =IF(B21='HCFV TCO Dashboard'!$C$15,"Road Tax (₹)","") -> Road Tax (₹) | E21: INR | F21: =IF(E21='HCFV TCO Dashboard'!C15,"TCO BREAKDOWN BY COST AT YEAR 10 (₹ / km)","") -> TCO BREAKDOWN BY COST AT YEAR 10 (₹ / km) | K21: 5 | L21: =IF('HCFV TCO Dashboard'!$C$5=Currency!K21,"TCO AT YEAR 5","") -> TCO AT YEAR 5
B22: USD | C22: =IF(B22='HCFV TCO Dashboard'!$C$15,"Road Tax ($)","") ->  | E22: USD | F22: =IF(E22='HCFV TCO Dashboard'!C15,"TCO BREAKDOWN BY COST AT YEAR 10 ($ / mi)","") ->  | K22: 6 | L22: =IF('HCFV TCO Dashboard'!$C$5=Currency!K22,"TCO AT YEAR 6","") -> 
B23: EURO | C23: =IF(B23='HCFV TCO Dashboard'!$C$15,"Road Tax (€)","") ->  | E23: EURO | F23: =IF(E23='HCFV TCO Dashboard'!C15,"TCO BREAKDOWN BY COST AT YEAR 10 (€ / km)","") ->  | K23: 7 | L23: =IF('HCFV TCO Dashboard'!$C$5=Currency!K23,"TCO AT YEAR 7","") -> 
K24: 8 | L24: =IF('HCFV TCO Dashboard'!$C$5=Currency!K24,"TCO AT YEAR 8","") -> 
B25: INR | C25: =IF(B25='HCFV TCO Dashboard'!$C$15,"Insurance cost (₹)","") -> Insurance cost (₹) | E25: INR | F25: =IF(E25='HCFV TCO Dashboard'!C15,"TOTAL COST OF OWNERSHIP OVER YEARS (₹ / km)","") -> TOTAL COST OF OWNERSHIP OVER YEARS (₹ / km) | K25: 9 | L25: =IF('HCFV TCO Dashboard'!$C$5=Currency!K25,"TCO AT YEAR 9","") -> 
B26: USD | C26: =IF(B26='HCFV TCO Dashboard'!$C$15,"Insurance Cost ($)","") ->  | E26: USD | F26: =IF(E26='HCFV TCO Dashboard'!C15,"TOTAL COST OF OWNERSHIP OVER YEARS ($ / mi)","") ->  | K26: 10 | L26: =IF('HCFV TCO Dashboard'!$C$5=Currency!K26,"TCO AT YEAR 10","") -> 
B27: EURO | C27: =IF(B27='HCFV TCO Dashboard'!$C$15,"Insurance Cost (€)","") ->  | E27: EURO | F27: =IF(E27='HCFV TCO Dashboard'!C15,"TOTAL COST OF OWNERSHIP OVER YEARS (€ / km)","") -> 
B29: INR | C29: =IF(B29='HCFV TCO Dashboard'!$C$15,"Financial Incentive (₹)","") -> Financial Incentive (₹)
B30: USD | C30: =IF(B30='HCFV TCO Dashboard'!$C$15,"Financial Incentive ($)","") -> 
B31: EURO | C31: =IF(B31='HCFV TCO Dashboard'!$C$15,"Financial Incentive (€)","") -> 
B33: INR | C33: =IF(B33='HCFV TCO Dashboard'!$C$15,"Staff Cost per Month (₹)","") -> Staff Cost per Month (₹)
B34: USD | C34: =IF(B34='HCFV TCO Dashboard'!$C$15,"Staff Cost per Month ($)","") -> 
B35: EURO | C35: =IF(B35='HCFV TCO Dashboard'!$C$15,"Staff Cost per Month (€)","") -> 
B37: INR | C37: =IF(B37='HCFV TCO Dashboard'!$C$15,"Fuel cost (₹/kWh; ₹/L)","") -> Fuel cost (₹/kWh; ₹/L)
B38: USD | C38: =IF(B38='HCFV TCO Dashboard'!$C$15,"Fuel cost ($/kWh; $/gal)","") -> 
B39: EURO | C39: =IF(B39='HCFV TCO Dashboard'!$C$15,"Fuel cost (€/kWh; €/L)","") -> 
B41: INR | C41: =IF(B41='HCFV TCO Dashboard'!$C$15,"Annual Maintenance Cost (₹)","") -> Annual Maintenance Cost (₹)
B42: USD | C42: =IF(B42='HCFV TCO Dashboard'!$C$15,"Annual Maintenance Cost ($)","") -> 
B43: EURO | C43: =IF(B43='HCFV TCO Dashboard'!$C$15,"Annual Maintenance Cost (€)","") -> 
B45: INR | C45: =IF(B45='HCFV TCO Dashboard'!$C$15,"Financing Component (₹)","") -> Financing Component (₹)
B46: USD | C46: =IF(B46='HCFV TCO Dashboard'!$C$15,"Financing Component ($)","") -> 
B47: EURO | C47: =IF(B47='HCFV TCO Dashboard'!$C$15,"Financing Component (€)","") -> 
B49: INR | C49: =IF(B49='HCFV TCO Dashboard'!$C$15,"Monthly EMI (₹)","") -> Monthly EMI (₹)
B50: USD | C50: =IF(B50='HCFV TCO Dashboard'!$C$15,"Monthly EMI ($)","") -> 
B51: EURO | C51: =IF(B51='HCFV TCO Dashboard'!$C$15,"Monthly EMI (€)","") -> 
B53: INR | C53: =IF(B53='HCFV TCO Dashboard'!$C$15,"Charging Infrastructure Cost (₹)","") -> Charging Infrastructure Cost (₹)
B54: USD | C54: =IF(B54='HCFV TCO Dashboard'!$C$15,"Charging Infrastructure Cost ($)","") -> 
B55: EURO | C55: =IF(B55='HCFV TCO Dashboard'!$C$15,"Charging Infrastructure Cost (€)","") -> 

Sheet Capital Cost (hidden)
A1: Vehicle Cost | B1: e-HCFV (LT) | C1: e-HCFV (HT) | D1: D-HCFV (LT) | E1: D-HCFV (HT)
A2: Purchase Cost (₹) | B2: =VLOOKUP('HCFV TCO Dashboard'!$C$15,'Capital Cost'!$A$28:$E$30,2,0) -> 7000000 | C2: =VLOOKUP('HCFV TCO Dashboard'!$C$15,'Capital Cost'!$A$28:$E$30,3,0) -> 11050000 | D2: =VLOOKUP('HCFV TCO Dashboard'!$C$15,'Capital Cost'!$A$28:$E$30,4,0) -> 3370000 | E2: =VLOOKUP('HCFV TCO Dashboard'!$C$15,'Capital Cost'!$A$28:$E$30,5,0) -> 3941000
A3: Tax (₹) | B3: =VLOOKUP('HCFV TCO Dashboard'!$C$15,'Capital Cost'!$A$33:$E$35,2,0) -> 0 | C3: =VLOOKUP('HCFV TCO Dashboard'!$C$15,'Capital Cost'!$A$33:$E$35,3,0) -> 0 | D3: =VLOOKUP('HCFV TCO Dashboard'!$C$15,'Capital Cost'!$A$33:$E$35,4,0) -> 44147 | E3: =VLOOKUP('HCFV TCO Dashboard'!$C$15,'Capital Cost'!$A$33:$E$35,5,0) -> 42545
A4: Insurance (₹) | B4: =VLOOKUP('HCFV TCO Dashboard'!$C$15,'Capital Cost'!$A$38:$E$40,2,0) -> 67050 | C4: =VLOOKUP('HCFV TCO Dashboard'!$C$15,'Capital Cost'!$A$38:$E$40,3,0) -> 98550 | D4: =VLOOKUP('HCFV TCO Dashboard'!$C$15,'Capital Cost'!$A$38:$E$40,4,0) -> 47965 | E4: =VLOOKUP('HCFV TCO Dashboard'!$C$15,'Capital Cost'!$A$38:$E$40,5,0) -> 54249
A5: Financing Component (₹) | B5: =Financing!B17 -> 1759755.255 | C5: =Financing!C17 -> 2777899.367 | D5: =Financing!D17 -> 1195095.445 | E5: =Financing!E17 -> 1397587.878
A6: Total Financial Incentive (₹) | B6: 0 | C6: 0 | D6: 0 | E6: 0
A7: Misc. Cost (₹) | B7: 0 | C7: 0 | D7: 0 | E7: 0
A8: Total Vehicle Cost (₹) | B8: =((B2+B3+B4+B5+B7)-B6) -> 8826805.255 | C8: =((C2+C3+C4+C5+C7)-C6) -> 13926449.37 | D8: =((D2+D3+D4+D5+D7)-D6) -> 4657207.445 | E8: =((E2+E3+E4+E5+E7)-E6) -> 5435381.878
A10: Charging Infrastructure Cost | B10: e-HCFV (LT) | C10: e-HCFV (HT) | D10: D-HCFV (LT) | E10: D-HCFV (HT)
A11: No. of Slow Charger (SC) | B11: 1 | C11: 0 | D11: 0 | E11: 0
A12: Cost of SC per unit (₹) | B12: 1800000 | C12: 1800000 | D12: 0 | E12: 0
A13: Total Cost of SC (₹) | B13: =B11*B12 -> 1800000 | C13: =C11*C12 -> 0 | D13: =D11*D12 -> 0 | E13: 0
A14: No. of Fast Charger (FC) | B14: 0.17 | C14: 1 | D14: 0 | E14: 0
A15: Cost of FC per unit (₹) | B15: 5250000 | C15: 5250000 | D15: 0 | E15: 0
A16: Total Cost of FC (₹) | B16: =B14*B15 -> 892500 | C16: =C14*C15 -> 5250000 | D16: =D14*D15 -> 0 | E16: 0
A17: Installation cost of Charging Infra (₹) | B17: =(B13+B16)*20/100 -> 538500 | C17: =(C13+C16)*20/100 -> 1050000 | D17: =(D13+D16)*20/100 -> 0 | E17: 0
A18: Total incentive for Charging Infra (₹) | B18: 0 | C18: 0 | D18: 0 | E18: 0
A19: Total Cost of Charging Infra (Rs.) | B19: =(B13+B16+B17)-B18 -> 3231000 | C19: =(C13+C16+C17)-C18 -> 6300000 | D19: =(D13+D16+D17)-D18 -> 0 | E19: 0
A22: Per Km Capital Cost | B22: =(B8+B19)/Summary!$B$4 -> 127.5958228 | C22: =(C8+C19)/Summary!$B$4 -> 214.0365012 | D22: =(D8+D19)/Summary!$B$4 -> 49.28261846 | E22: =(E8+E19)/Summary!$B$4 -> 57.51726855
B24: SC = 120kW; FC=350kW (0.5c charging) | C24: FC= 350 kW (0.5c charging)
A27: PURCHASE COST
A28: INR | B28: =IF($A$28='HCFV TCO Dashboard'!$C$15,'HCFV TCO Dashboard'!C20,) -> 7000000 | C28: =IF($A$28='HCFV TCO Dashboard'!$C$15,'HCFV TCO Dashboard'!D20,) -> 11050000 | D28: =IF($A$28='HCFV TCO Dashboard'!$C$15,'HCFV TCO Dashboard'!E20,) -> 3370000 | E28: =IF($A$28='HCFV TCO Dashboard'!$C$15,'HCFV TCO Dashboard'!F20,) -> 3941000
A29: USD | B29: =IF($A$29='HCFV TCO Dashboard'!$C$15,'HCFV TCO Dashboard'!C20*Currency!$C$5,) -> 0 | C29: =IF($A$29='HCFV TCO Dashboard'!$C$15,'HCFV TCO Dashboard'!D20*Currency!$C$5,) -> 0 | D29: =IF($A$29='HCFV TCO Dashboard'!$C$15,'HCFV TCO Dashboard'!E20*Currency!$C$5,) -> 0 | E29: =IF($A$29='HCFV TCO Dashboard'!$C$15,'HCFV TCO Dashboard'!F20*Currency!$C$5,) -> 0
A30: EURO | B30: =IF($A$30='HCFV TCO Dashboard'!$C$15,'HCFV TCO Dashboard'!C20*Currency!$C$8,) -> 0 | C30: =IF($A$30='HCFV TCO Dashboard'!$C$15,'HCFV TCO Dashboard'!D20*Currency!$C$8,) -> 0 | D30: =IF($A$30='HCFV TCO Dashboard'!$C$15,'HCFV TCO Dashboard'!E20*Currency!$C$8,) -> 0 | E30: =IF($A$30='HCFV TCO Dashboard'!$C$15,'HCFV TCO Dashboard'!F20*Currency!$C$8,) -> 0
A32: TAX
A33: INR | B33: =IF($A$33='HCFV TCO Dashboard'!$C$15,'HCFV TCO Dashboard'!C21,) -> 0 | C33: =IF($A$33='HCFV TCO Dashboard'!$C$15,'HCFV TCO Dashboard'!D21,) -> 0 | D33: =IF($A$33='HCFV TCO Dashboard'!$C$15,'HCFV TCO Dashboard'!E21,) -> 44147 | E33: =IF($A$33='HCFV TCO Dashboard'!$C$15,'HCFV TCO Dashboard'!F21,) -> 42545
A34: USD | B34: =IF($A$34='HCFV TCO Dashboard'!$C$15,'HCFV TCO Dashboard'!C21*Currency!$C$5,) -> 0 | C34: =IF($A$34='HCFV TCO Dashboard'!$C$15,'HCFV TCO Dashboard'!D21*Currency!$C$5,) -> 0 | D34: =IF($A$34='HCFV TCO Dashboard'!$C$15,'HCFV TCO Dashboard'!E21*Currency!$C$5,) -> 0 | E34: =IF($A$34='HCFV TCO Dashboard'!$C$15,'HCFV TCO Dashboard'!F21*Currency!$C$5,) -> 0
A35: EURO | B35: =IF($A$35='HCFV TCO Dashboard'!$C$15,'HCFV TCO Dashboard'!C21*Currency!$C$8,) -> 0 | C35: =IF($A$35='HCFV TCO Dashboard'!$C$15,'HCFV TCO Dashboard'!D21*Currency!$C$8,) -> 0 | D35: =IF($A$35='HCFV TCO Dashboard'!$C$15,'HCFV TCO Dashboard'!E21*Currency!$C$8,) -> 0 | E35: =IF($A$35='HCFV TCO Dashboard'!$C$15,'HCFV TCO Dashboard'!F21*Currency!$C$8,) -> 0
A37: INSURANCE
A38: INR | B38: =IF($A$38='HCFV TCO Dashboard'!$C$15,'HCFV TCO Dashboard'!C22,) -> 67050 | C38: =IF($A$38='HCFV TCO Dashboard'!$C$15,'HCFV TCO Dashboard'!D22,) -> 98550 | D38: =IF($A$38='HCFV TCO Dashboard'!$C$15,'HCFV TCO Dashboard'!E22,) -> 47965 | E38: =IF($A$38='HCFV TCO Dashboard'!$C$15,'HCFV TCO Dashboard'!F22,) -> 54249
A39: USD | B39: =IF($A$39='HCFV TCO Dashboard'!$C$15,'HCFV TCO Dashboard'!C22*Currency!$C$5,) -> 0 | C39: =IF($A$39='HCFV TCO Dashboard'!$C$15,'HCFV TCO Dashboard'!D22*Currency!$C$5,) -> 0 | D39: =IF($A$39='HCFV TCO Dashboard'!$C$15,'HCFV TCO Dashboard'!E22*Currency!$C$5,) -> 0 | E39: =IF($A$39='HCFV TCO Dashboard'!$C$15,'HCFV TCO Dashboard'!F22*Currency!$C$5,) -> 0
A40: EURO | B40: =IF($A$40='HCFV TCO Dashboard'!$C$15,'HCFV TCO Dashboard'!C22*Currency!$C$8,) -> 0 | C40: =IF($A$40='HCFV TCO Dashboard'!$C$15,'HCFV TCO Dashboard'!D22*Currency!$C$8,) -> 0 | D40: =IF($A$40='HCFV TCO Dashboard'!$C$15,'HCFV TCO Dashboard'!E22*Currency!$C$8,) -> 0 | E40: =IF($A$40='HCFV TCO Dashboard'!$C$15,'HCFV TCO Dashboard'!F22*Currency!$C$8,) -> 0
A42: INCENTIVE
A43: INR | B43: =IF($A$43='HCFV TCO Dashboard'!$C$15,'HCFV TCO Dashboard'!C23,) -> 0 | C43: =IF($A$43='HCFV TCO Dashboard'!$C$15,'HCFV TCO Dashboard'!D23,) -> 0 | D43: =IF($A$43='HCFV TCO Dashboard'!$C$15,'HCFV TCO Dashboard'!E23,) -> 0 | E43: =IF($A$43='HCFV TCO Dashboard'!$C$15,'HCFV TCO Dashboard'!F23,) -> 0
A44: USD | B44: =IF($A$44='HCFV TCO Dashboard'!$C$15,'HCFV TCO Dashboard'!C23*Currency!$C$5,) -> 0 | C44: =IF($A$44='HCFV TCO Dashboard'!$C$15,'HCFV TCO Dashboard'!D23*Currency!$C$5,) -> 0 | D44: =IF($A$44='HCFV TCO Dashboard'!$C$15,'HCFV TCO Dashboard'!E23*Currency!$C$5,) -> 0 | E44: =IF($A$44='HCFV TCO Dashboard'!$C$15,'HCFV TCO Dashboard'!F23*Currency!$C$5,) -> 0
A45: EURO | B45: =IF($A$45='HCFV TCO Dashboard'!$C$15,'HCFV TCO Dashboard'!C23*Currency!$C$8,) -> 0 | C45: =IF($A$45='HCFV TCO Dashboard'!$C$15,'HCFV TCO Dashboard'!D23*Currency!$C$8,) -> 0 | D45: =IF($A$45='HCFV TCO Dashboard'!$C$15,'HCFV TCO Dashboard'!E23*Currency!$C$8,) -> 0 | E45: =IF($A$45='HCFV TCO Dashboard'!$C$15,'HCFV TCO Dashboard'!F23*Currency!$C$8,) -> 0

Sheet Operational Cost (hidden)
A1: Staff cost | B1: e-HCFV (LT) | C1: e-HCFV (HT) | D1: D-HCFV (LT) | E1: D-HCFV (HT)
A2: Staff Cost (₹ / Month) | B2: ='HCFV TCO Dashboard'!C39 -> 50000 | C2: ='HCFV TCO Dashboard'!C39 -> 50000 | D2: ='HCFV TCO Dashboard'!C39 -> 50000 | E2: ='HCFV TCO Dashboard'!C39 -> 50000
A3: Other Support staff cost (₹ / Month) | B3: 0 | C3: 0 | D3: 0 | E3: 0
A4: Total Annual Staff Cost (₹) | B4: =((B2+B3)*12) -> 600000 | C4: =((C2+C3)*12) -> 600000 | D4: 600000 | E4: 600000
A5: Per km Staff Cost | B5: =B4/Summary!$B$4 -> 6.349206349 | C5: =C4/Summary!$B$4 -> 6.349206349 | D5: =D4/Summary!$B$4 -> 6.349206349 | E5: =E4/Summary!$B$4 -> 6.349206349
A7: Average Fuel Cost | B7: e-HCFV (LT) | C7: e-HCFV (HT) | D7: D-HCFV (LT) | E7: D-HCFV (HT)
A8: Fuel cost (₹/kWh; ₹/L) | B8: =VLOOKUP('HCFV TCO Dashboard'!$C$15,'Operational Cost'!$A$45:$E$47,2,0) -> 6 | C8: =VLOOKUP('HCFV TCO Dashboard'!$C$15,'Operational Cost'!$A$45:$E$47,3,0) -> 6 | D8: =VLOOKUP('HCFV TCO Dashboard'!$C$15,'Operational Cost'!$A$45:$E$47,4,0) -> 89 | E8: =VLOOKUP('HCFV TCO Dashboard'!$C$15,'Operational Cost'!$A$45:$E$47,5,0) -> 89
A9: Mileage (km/kWh; km/L) | B9: ='HCFV TCO Dashboard'!C46 -> 0.7 | C9: ='HCFV TCO Dashboard'!D46 -> 0.55 | D9: ='HCFV TCO Dashboard'!E46 -> 3.5 | E9: ='HCFV TCO Dashboard'!F46 -> 2.5
A10: Annual fuel consumption (kWh; L) | B10: =Summary!B4/B9 -> 135000 | C10: =Summary!B4/C9 -> 171818.1818 | D10: =Summary!B4/D9 -> 27000 | E10: =Summary!$B$4/E9 -> 37800
A11: Total Annual Fuel Cost ( ₹ ) | B11: =(B10*B8) -> 810000 | C11: =(C10*C8) -> 1030909.091 | D11: =(D10*D8) -> 2403000 | E11: =(E10*E8) -> 3364200
A12: Per km Fuel Cost | B12: =B11/Summary!$B$4 -> 8.571428571 | C12: =C11/Summary!$B$4 -> 10.90909091 | D12: =D11/Summary!$B$4 -> 25.42857143 | E12: =E11/Summary!$B$4 -> 35.6
A14: Maintenance Cost | B14: e-HCFV (LT) | C14: e-HCFV (HT) | D14: D-HCFV (LT) | E14: D-HCFV (HT)
A15: Annual Maintenance Cost (₹) | B15: =VLOOKUP('HCFV TCO Dashboard'!$C$15,'Operational Cost'!$A$40:$E$42,2,0) -> 30500 | C15: =VLOOKUP('HCFV TCO Dashboard'!$C$15,'Operational Cost'!$A$40:$E$42,3,0) -> 32000 | D15: =VLOOKUP('HCFV TCO Dashboard'!$C$15,'Operational Cost'!$A$40:$E$42,4,0) -> 61172 | E15: =VLOOKUP('HCFV TCO Dashboard'!$C$15,'Operational Cost'!$A$40:$E$42,5,0) -> 63000
A16: Other Consumables (₹) | B16: 0 | C16: 0 | D16: 0 | E16: 0
A17: Other Misc. Cost (₹) | B17: 0 | C17: 0 | D17: 0 | E17: 0
A18: Total Annual Maintenance cost (₹) | B18: =(SUM(B15:B17)) -> 30500 | C18: =(SUM(C15:C17)) -> 32000 | D18: =(SUM(D15:D17)) -> 61172 | E18: =(SUM(E15:E17)) -> 63000
A19: Per km Maintenance Cost | B19: =B18/Summary!$B$4 -> 0.3227513228 | C19: =C18/Summary!$B$4 -> 0.3386243386 | D19: =D18/Summary!$B$4 -> 0.6473227513 | E19: =E18/Summary!$B$4 -> 0.6666666667
A21: Battery Replacement Cost | B21: e-HCFV (LT) | C21: e-HCFV (HT) | D21: D-HCFV (LT) | E21: D-HCFV (HT)
A22: Number of battery replacements | B22: ='HCFV TCO Dashboard'!C45 -> 1 | C22: ='HCFV TCO Dashboard'!D45 -> 1 | D22: 0 | E22: 0
A23: Capacity of battery (kWh) | B23: ='HCFV TCO Dashboard'!C44 -> 350 | C23: ='HCFV TCO Dashboard'!D44 -> 550 | D23: 0 | E23: 0
A24: Battery Cost (₹ / kWh) | B24: =Summary!$B$6*Summary!$B$7 -> 10001 | C24: =Summary!$B$6*Summary!$B$7 -> 10001 | D24: 0 | E24: 0
A25: Total battery Cost (₹) | B25: =B24*B23 -> 3500350 | C25: =C24*C23 -> 5500550 | D25: =D24*D23 -> 0 | E25: 0
A26: Battery replacement Charge (₹) | B26: =B25*0.2 -> 700070 | C26: =C25*0.2 -> 1100110 | D26: 0 | E26: 0
A27: Total battery replacement cost (₹) | B27: =((B25+B26)*B22) -> 4200420 | C27: =((C25+C26)*C22) -> 6600660 | D27: =((D25+D26)*D22) -> 0 | E27: 0
A28: Annual Battery Replacement Cost | B28: =B27/Summary!B3 -> 420042 | C28: =C27/Summary!B3 -> 660066 | D28: =D27/Summary!B3 -> 0
A29: Per Km Battery Replacement Cost | B29: =B27/Summary!$B$5 -> 4.444888889 | C29: =C27/Summary!$B$5 -> 6.984825397 | D29: =D27/Summary!$B$5 -> 0 | E29: =E27/Summary!$B$5 -> 0
A31: Total Operational Cost | B31: =B27+B18+B11+B4 -> 5640920 | C31: =C27+C18+C11+C4 -> 8263569.091 | D31: =D27+D18+D11+D4 -> 3064172 | E31: =E27+E18+E11+E4 -> 4027200
A32: Per Km Operational Cost | B32: =B29+B19+B12+B5 -> 19.68827513 | C32: =C29+C19+C12+C5 -> 24.58174699 | D32: =D29+D19+D12+D5 -> 32.42510053 | E32: =E29+E19+E12+E5 -> 42.61587302
A34: STAFF COST
A35: INR | B35: =IF($A$35='HCFV TCO Dashboard'!$C$15,'HCFV TCO Dashboard'!C39,) -> 50000
A36: USD | B36: =IF($A$36='HCFV TCO Dashboard'!$C$15,'HCFV TCO Dashboard'!C39*Currency!$C$5,) -> 0
A37: EURO | B37: =IF($A$37='HCFV TCO Dashboard'!$C$15,'HCFV TCO Dashboard'!C39*Currency!$C$8,) -> 0
A39: ANNUAL MAINTENANCE COST
A40: INR | B40: =IF($A$40='HCFV TCO Dashboard'!$C$15,'HCFV TCO Dashboard'!C47,) -> 30500 | C40: =IF($A$40='HCFV TCO Dashboard'!$C$15,'HCFV TCO Dashboard'!D47,) -> 32000 | D40: =IF($A$40='HCFV TCO Dashboard'!$C$15,'HCFV TCO Dashboard'!E47,) -> 61172 | E40: =IF($A$40='HCFV TCO Dashboard'!$C$15,'HCFV TCO Dashboard'!F47,) -> 63000
A41: USD | B41: =IF($A$41='HCFV TCO Dashboard'!$C$15,'HCFV TCO Dashboard'!C47*Currency!$C$5,) -> 0 | C41: =IF($A$41='HCFV TCO Dashboard'!$C$15,'HCFV TCO Dashboard'!D47*Currency!$C$5,) -> 0 | D41: =IF($A$41='HCFV TCO Dashboard'!$C$15,'HCFV TCO Dashboard'!E47*Currency!$C$5,) -> 0 | E41: =IF($A$41='HCFV TCO Dashboard'!$C$15,'HCFV TCO Dashboard'!F47*Currency!$C$5,) -> 0
A42: EURO | B42: =IF($A$42='HCFV TCO Dashboard'!$C$15,'HCFV TCO Dashboard'!C47*Currency!$C$8,) -> 0 | C42: =IF($A$42='HCFV TCO Dashboard'!$C$15,'HCFV TCO Dashboard'!D47*Currency!$C$8,) -> 0 | D42: =IF($A$42='HCFV TCO Dashboard'!$C$15,'HCFV TCO Dashboard'!E47*Currency!$C$8,) -> 0 | E42: =IF($A$42='HCFV TCO Dashboard'!$C$15,'HCFV TCO Dashboard'!F47*Currency!$C$8,) -> 0
A44: AVERAGE FUEL COST
A45: INR | B45: =IF($A$45='HCFV TCO Dashboard'!$C$15,'HCFV TCO Dashboard'!C43,) -> 6 | C45: =IF($A$45='HCFV TCO Dashboard'!$C$15,'HCFV TCO Dashboard'!D43,) -> 6 | D45: =IF($A$45='HCFV TCO Dashboard'!$C$15,'HCFV TCO Dashboard'!E43,) -> 89 | E45: =IF($A$45='HCFV TCO Dashboard'!$C$15,'HCFV TCO Dashboard'!F43,) -> 89
A46: USD | B46: =IF($A$46='HCFV TCO Dashboard'!$C$15,'HCFV TCO Dashboard'!C43*Currency!$C$5,) -> 0 | C46: =IF($A$46='HCFV TCO Dashboard'!$C$15,'HCFV TCO Dashboard'!$D$43*Currency!$C$5/3.78,) -> 0 | D46: =IF($A$46='HCFV TCO Dashboard'!$C$15,'HCFV TCO Dashboard'!E43*Currency!$C$5/3.78,) -> 0 | E46: =IF($A$46='HCFV TCO Dashboard'!$C$15,'HCFV TCO Dashboard'!F43*Currency!$C$5/2.567,) -> 0
A47: EURO | B47: =IF($A$47='HCFV TCO Dashboard'!$C$15,'HCFV TCO Dashboard'!C43*Currency!$C$8,) -> 0 | C47: =IF($A$47='HCFV TCO Dashboard'!$C$15,'HCFV TCO Dashboard'!D43*Currency!$C$8,) -> 0 | D47: =IF($A$47='HCFV TCO Dashboard'!$C$15,'HCFV TCO Dashboard'!E43*Currency!$C$8,) -> 0 | E47: =IF($A$47='HCFV TCO Dashboard'!$C$15,'HCFV TCO Dashboard'!F43*Currency!$C$8,) -> 0

Sheet Financing (hidden)
A1: Vehicle Cost | B1: e-HCFV (LT) | C1: e-HCFV (HT) | D1: D-HCFV (LT) | E1: D-HCFV (HT)
A2: Total Cost of HCFV (₹) | B2: ='HCFV TCO Dashboard'!C20-'HCFV TCO Dashboard'!C23 -> 7000000 | C2: ='HCFV TCO Dashboard'!D20 -> 11050000 | D2: ='HCFV TCO Dashboard'!E20 -> 3370000 | E2: ='HCFV TCO Dashboard'!F20 -> 3941000
A3: Share of Operator (%) | B3: =100%-B6 -> 0.8 | C3: =100%-C6 -> 0.8 | D3: 0.8 | E3: 0.8
A4: Share of Operator (₹) | B4: =B3*B2 -> 5600000 | C4: =C3*C2 -> 8840000 | D4: =D3*D2 -> 2696000 | E4: =E3*E2 -> 3152800
A5: Processing Fees | B5: =IF(B8=0,0,IF(B4*0.5%>500,B4*0.5%,500)) -> 28000 | C5: =IF(C8=0,0,IF(C4*0.5%>500,C4*0.5%,500)) -> 44200 | D5: 13480 | E5: 15764
A6: Equity % | B6: ='HCFV TCO Dashboard'!C31 -> 0.2 | C6: ='HCFV TCO Dashboard'!D31 -> 0.2 | D6: ='HCFV TCO Dashboard'!E31 -> 0.2 | E6: ='HCFV TCO Dashboard'!F31 -> 0.2
A7: Equity (₹) | B7: =(B6*B2) -> 1400000 | C7: =(C6*C2) -> 2210000 | D7: =(D6*D2) -> 674000 | E7: =(E6*E2) -> 788200
A8: Loan amount (₹) | B8: =B4 -> 5600000 | C8: =C4 -> 8840000 | D8: =D4 -> 2696000 | E8: =E4 -> 3152800
A9: Interest rate (%) | B9: ='HCFV TCO Dashboard'!C30 -> 0.08 | C9: ='HCFV TCO Dashboard'!D30 -> 0.08 | D9: ='HCFV TCO Dashboard'!E30 -> 0.11 | E9: ='HCFV TCO Dashboard'!F30 -> 0.11
A10: Term of payment (yrs) | B10: ='HCFV TCO Dashboard'!C29 -> 7 | C10: ='HCFV TCO Dashboard'!D29 -> 7 | D10: ='HCFV TCO Dashboard'!E29 -> 7 | E10: ='HCFV TCO Dashboard'!F29 -> 7
A11: No of EMI (Yearly) | B11: =B10*12 -> 84 | C11: =C10*12 -> 84 | D11: 84 | E11: 84
A12: Monthly EMI Loan (Rs.) | B12: =((PMT(B9/12,B10*12,-B8))+(B5/B11)) -> 87616.13399 | C12: =((PMT(C9/12,C10*12,-C8))+(C5/C11)) -> 138308.3258 | D12: 46322.56482 | E12: 54171.28426
A13: Total interest paid | B13: =(B12*B10*12)-B8 -> 1759755.255 | C13: =(C12*C10*12)-C8 -> 2777899.367 | D13: 1195095.445 | E13: 1397587.878
A14: Yearly Interest Paid | B14: =B13/B10 -> 251393.6079 | C14: =C13/C10 -> 396842.7667 | D14: =D13/D10 -> 170727.9207 | E14: =E13/E10 -> 199655.4111
A15: EMI per KM (Rs.) | B15: =B14/Summary!B4 -> 2.660249819 | C15: =C14/Summary!B4 -> 4.199394357 | D15: =D14/Summary!B4 -> 1.806644663 | E15: =E14/Summary!B4 -> 2.112755673
A17: Total Interest Paid | B17: =VLOOKUP('HCFV TCO Dashboard'!$C$15,Financing!$A$22:$E$24,2,0) -> 1759755.255 | C17: =VLOOKUP('HCFV TCO Dashboard'!$C$15,Financing!$A$22:$E$24,3,0) -> 2777899.367 | D17: =VLOOKUP('HCFV TCO Dashboard'!$C$15,Financing!$A$22:$E$24,4,0) -> 1195095.445 | E17: =VLOOKUP('HCFV TCO Dashboard'!$C$15,Financing!$A$22:$E$24,5,0) -> 1397587.878
A18: (Used for Dashboard Calc.)
A21: YEARLY INTEREST
A22: INR | B22: =IF($A$22='HCFV TCO Dashboard'!$C$15,Financing!B13,) -> 1759755.255 | C22: =IF($A$22='HCFV TCO Dashboard'!$C$15,Financing!C13,) -> 2777899.367 | D22: =IF($A$22='HCFV TCO Dashboard'!$C$15,Financing!D13,) -> 1195095.445 | E22: =IF($A$22='HCFV TCO Dashboard'!$C$15,Financing!E13,) -> 1397587.878
A23: USD | B23: =IF($A$23='HCFV TCO Dashboard'!$C$15,Financing!B13*Currency!$C$5,) -> 0 | C23: =IF($A$23='HCFV TCO Dashboard'!$C$15,Financing!C13*Currency!$C$5,) -> 0 | D23: =IF($A$23='HCFV TCO Dashboard'!$C$15,Financing!D13*Currency!$C$5,) -> 0 | E23: =IF($A$23='HCFV TCO Dashboard'!$C$15,Financing!E13*Currency!$C$5,) -> 0
A24: EURO | B24: =IF($A$24='HCFV TCO Dashboard'!$C$15,Financing!B13*Currency!$C$8,) -> 0 | C24: =IF($A$24='HCFV TCO Dashboard'!$C$15,Financing!C13*Currency!$C$8,) -> 0 | D24: =IF($A$24='HCFV TCO Dashboard'!$C$15,Financing!D13*Currency!$C$8,) -> 0 | E24: =IF($A$24='HCFV TCO Dashboard'!$C$15,Financing!E13*Currency!$C$8,) -> 0

Sheet TCO_1 (hidden)
A1: Parameter | B1: Unit | C1: e-HCFV (LT) | D1: e-HCFV (HT) | E1: D-HCFV (LT) | F1: D-HCFV (HT)
A2: Discount rate value | B2: - | C2: =Summary!B9 -> 0.1 | D2: =Summary!C9 -> 0.1 | E2: =Summary!D9 -> 0.1 | F2: =Summary!E9 -> 0.1
A3: Resale rate value | B3: - | C3: =Summary!B10 -> 0.2 | D3: =Summary!C10 -> 0.2 | E3: =Summary!D10 -> 0.1 | F3: =Summary!E10 -> 0.1
A4: Capital recovery factor (CRF)_N | B4: - | C4: =C2*(1+C2)^Summary!B3 -> 0.259374246 | D4: =D2*(1+D2)^Summary!B3 -> 0.259374246 | E4: =E2*(1+E2)^Summary!B3 -> 0.259374246 | F4: =F2*(1+F2)^Summary!B3 -> 0.259374246
A5: Capital recovery factor (CRF)_D | B5: - | C5: =((1+C2)^Summary!B3)-1 -> 1.59374246 | D5: =(1+D2)^Summary!B3-1 -> 1.59374246 | E5: =(1+E2)^Summary!B3-1 -> 1.59374246 | F5: =(1+F2)^Summary!B3-1 -> 1.59374246
A6: CRF | B6: - | C6: =C4/C5 -> 0.1627453949 | D6: =D4/D5 -> 0.1627453949 | E6: =E4/E5 -> 0.1627453949 | F6: =F4/F5 -> 0.1627453949
A7: Present value factor (PVF) | B7: - | C7: =1/(1+C2)^10 -> 0.3855432894 | D7: =1/(1+D2)^Summary!B3 -> 0.3855432894 | E7: =1/(1+E2)^Summary!B3 -> 0.3855432894 | F7: =1/(1+F2)^Summary!B3 -> 0.3855432894
A8: Residual value (RV) | B8: ₹ | C8: =Summary!B13*C3 -> 1765361.051 | D8: =Summary!C13*D3 -> 2785289.873 | E8: =Summary!D13*E3 -> 465720.7445 | F8: =Summary!E13*F3 -> 543538.1878
A9: Annual Travel Distance | B9: km | C9: =Summary!$B$4 -> 94500 | D9: =Summary!$B$4 -> 94500 | E9: =Summary!$B$4 -> 94500 | F9: =Summary!$B$4 -> 94500
A10: Capex component | B10: ₹ | C10: =((Summary!B18-(C8*C7))*C6) -> 1851584.001 | D10: =(Summary!C18-(D8*D7))*D6 -> 3116997.376 | E10: =(Summary!D18-(E8*E7))*E6 -> 728717.2326 | F10: =(Summary!E18-(F8*F7))*F6 -> 850478.8518
A11: TCO | B11: ₹/km | C11: =(C10+L22)/C9 -> 31.69107427 | D11: =(D10+L23)/D9 -> 48.08851862 | E11: =(E10+L24)/E9 -> 27.63511408 | F11: =(F10+L25)/F9 -> 35.18538536
A13: Opex / year
A14: Vehicle type | B14: Unit | C14: 1 | D14: =C14+1 -> 2 | E14: 3 | F14: 4 | G14: 5 | H14: 6 | I14: 7 | J14: 8 | K14: 9 | L14: 10 | M14: Total
A15: e-HCFV (LT) | B15: ₹ | C15: =Summary!$B$26/(1+$C$2)^C14 -> 1691401.818 | D15: =Summary!$B$26/(1+$C$2)^D14 -> 1537638.017 | E15: =Summary!$B$26/(1+$C$2)^E14 -> 1397852.742 | F15: =Summary!$B$26/(1+$C$2)^F14 -> 1270775.22 | G15: =Summary!$B$26/(1+$C$2)^G14 -> 1155250.2 | H15: =Summary!$B$26/(1+$C$2)^H14 -> 1050227.455 | I15: =Summary!$B$26/(1+$C$2)^I14 -> 954752.2316 | J15: =Summary!$B$26/(1+$C$2)^J14 -> 867956.5742 | K15: =Summary!$B$26/(1+$C$2)^K14 -> 789051.4311 | L15: =Summary!$B$26/(1+$C$2)^L14 -> 717319.4828 | M15: =SUM(C15:L15)/Summary!B3 -> 1143222.517
A16: e-HCFV (HT) | B16: ₹ | C16: =Summary!$C$26/(1+$D$2)^C14 -> 2111795.537 | D16: =Summary!$C$26/(1+$D$2)^D14 -> 1919814.125 | E16: =Summary!$C$26/(1+$D$2)^E14 -> 1745285.568 | F16: =Summary!$C$26/(1+$D$2)^F14 -> 1586623.244 | G16: =Summary!$C$26/(1+$D$2)^G14 -> 1442384.767 | H16: =Summary!$C$26/(1+$D$2)^H14 -> 1311258.879 | I16: =Summary!$C$26/(1+$D$2)^I14 -> 1192053.526 | J16: =Summary!$C$26/(1+$D$2)^J14 -> 1083685.024 | K16: =Summary!$C$26/(1+$D$2)^K14 -> 985168.2036 | L16: =Summary!$C$26/(1+$D$2)^L14 -> 895607.4578 | M16: =SUM(C16:L16)/Summary!B3 -> 1427367.633
A17: D-HCFV (LT) | B17: ₹ | C17: =Summary!$D$26/(1+$E$2)^C14 -> 2785610.909 | D17: =Summary!$D$26/(1+$E$2)^D14 -> 2532373.554 | E17: =Summary!$D$26/(1+$E$2)^E14 -> 2302157.776 | F17: =Summary!$D$26/(1+$E$2)^F14 -> 2092870.706 | G17: =Summary!$D$26/(1+$E$2)^G14 -> 1902609.732 | H17: =Summary!$D$26/(1+$E$2)^H14 -> 1729645.211 | I17: =Summary!$D$26/(1+$E$2)^I14 -> 1572404.737 | J17: =Summary!$D$26/(1+$E$2)^J14 -> 1429458.852 | K17: =Summary!$D$26/(1+$E$2)^K14 -> 1299508.047 | L17: =Summary!$D$26/(1+$E$2)^L14 -> 1181370.952 | M17: =SUM(C17:L17)/Summary!B3 -> 1882801.048
A18: D-HCFV (HT) | B18: ₹ | C18: =Summary!$E$26/(1+$F$2)^C14 -> 3661090.909 | D18: =Summary!$E$26/(1+$F$2)^D14 -> 3328264.463 | E18: =Summary!$E$26/(1+$F$2)^E14 -> 3025694.966 | F18: =Summary!$E$26/(1+$F$2)^F14 -> 2750631.787 | G18: =Summary!$E$26/(1+$F$2)^G14 -> 2500574.352 | H18: =Summary!$E$26/(1+$F$2)^H14 -> 2273249.411 | I18: =Summary!$E$26/(1+$F$2)^I14 -> 2066590.374 | J18: =Summary!$E$26/(1+$F$2)^J14 -> 1878718.522 | K18: =Summary!$E$26/(1+$F$2)^K14 -> 1707925.929 | L18: =Summary!$E$26/(1+$F$2)^L14 -> 1552659.935 | M18: =SUM(C18:L18)/Summary!B3 -> 2474540.065
A20: Opex Sum
A21: Vehicle type | B21: Unit | C21: 1 | D21: =C21+1 -> 2 | E21: 3 | F21: 4 | G21: 5 | H21: 6 | I21: 7 | J21: 8 | K21: 9 | L21: 10
A22: e-HCFV (LT) | B22: ₹/km | C22: =(1/C21)*SUM($C$15:C15) -> 1691401.818 | D22: =(1/D21)*SUM($C$15:D15) -> 1614519.917 | E22: =(1/E21)*SUM($C$15:E15) -> 1542297.526 | F22: =(1/F21)*SUM($C$15:F15) -> 1474416.949 | G22: =(1/G21)*SUM($C$15:G15) -> 1410583.6 | H22: =(1/H21)*SUM($C$15:H15) -> 1350524.242 | I22: =(1/I21)*SUM($C$15:I15) -> 1293985.383 | J22: =(1/J21)*SUM($C$15:J15) -> 1240731.782 | K22: =(1/K21)*SUM($C$15:K15) -> 1190545.077 | L22: =(1/L21)*SUM($C$15:L15) -> 1143222.517
A23: e-HCFV (HT) | B23: ₹/km | C23: =(1/C21)*SUM($C$16:C16) -> 2111795.537 | D23: =(1/D21)*SUM($C$16:D16) -> 2015804.831 | E23: =(1/E21)*SUM($C$16:E16) -> 1925631.743 | F23: =(1/F21)*SUM($C$16:F16) -> 1840879.618 | G23: =(1/G21)*SUM($C$16:G16) -> 1761180.648 | H23: =(1/H21)*SUM($C$16:H16) -> 1686193.687 | I23: =(1/I21)*SUM($C$16:I16) -> 1615602.235 | J23: =(1/J21)*SUM($C$16:J16) -> 1549112.584 | K23: =(1/K21)*SUM($C$16:K16) -> 1486452.097 | L23: =(1/L21)*SUM($C$16:L16) -> 1427367.633
A24: D-HCFV (LT) | B24: ₹/km | C24: =(1/C21)*SUM($C$17:C17) -> 2785610.909 | D24: =(1/D21)*SUM($C$17:D17) -> 2658992.231 | E24: =(1/E21)*SUM($C$17:E17) -> 2540047.413 | F24: =(1/F21)*SUM($C$17:F17) -> 2428253.236 | G24: =(1/G21)*SUM($C$17:G17) -> 2323124.535 | H24: =(1/H21)*SUM($C$17:H17) -> 2224211.315 | I24: =(1/I21)*SUM($C$17:I17) -> 2131096.089 | J24: =(1/J21)*SUM($C$17:J17) -> 2043391.435 | K24: =(1/K21)*SUM($C$17:K17) -> 1960737.725 | L24: =(1/L21)*SUM($C$17:L17) -> 1882801.048
A25: D-HCFV (HT) | B25: ₹/km | C25: =(1/C21)*SUM($C$18:C18) -> 3661090.909 | D25: =(1/D21)*SUM($C$18:D18) -> 3494677.686 | E25: =(1/E21)*SUM($C$18:E18) -> 3338350.113 | F25: =(1/F21)*SUM($C$18:F18) -> 3191420.531 | G25: =(1/G21)*SUM($C$18:G18) -> 3053251.296 | H25: =(1/H21)*SUM($C$18:H18) -> 2923250.981 | I25: =(1/I21)*SUM($C$18:I18) -> 2800870.895 | J25: =(1/J21)*SUM($C$18:J18) -> 2685601.848 | K25: =(1/K21)*SUM($C$18:K18) -> 2576971.19 | L25: =(1/L21)*SUM($C$18:L18) -> 2474540.065
A27: TCO / year
A28: Vehicle type | B28: Unit | C28: 1 | D28: =C28+1 -> 2 | E28: 3 | F28: 4 | G28: 5 | H28: 6 | I28: 7 | J28: 8 | K28: 9 | L28: 10 | M28: Average TCO
A29: PVF | B29: - | C29: =1/(1+$C$2)^C28 -> 0.9090909091 | D29: =1/(1+$C$2)^D28 -> 0.826446281 | E29: 0.7513148009 | F29: 0.6830134554 | G29: 0.6209213231 | H29: 0.5644739301 | I29: 0.5131581182 | J29: 0.4665073802 | K29: 0.4240976184 | L29: 0.3855432894
A30: CRF | B30: - | C30: =($C$2*(1+$C$2)^C28)/((1+$C$2)^C28-1) -> 1.1 | D30: =($C$2*(1+$C$2)^D28)/((1+$C$2)^D28-1) -> 0.5761904762 | E30: 0.4021148036 | F30: 0.3154708037 | G30: 0.2637974808 | H30: 0.2296073804 | I30: 0.2054054997 | J30: 0.1874440176 | K30: 0.1736405391 | L30: 0.1627453949
A31: e-HCFV (LT) | B31: ₹/km | C31: =(((Summary!$B$18-($C$8*C29))*C30)+C22)/($C$9) -> 139.5727677 | D31: =(((Summary!$B$18-($C$8*D29))*D30)+D22)/($C$9) -> 81.70861746 | E31: =(((Summary!$B$18-($C$8*E29))*E30)+E22)/($C$9) -> 61.98495038 | F31: =(((Summary!$B$18-($C$8*F29))*F30)+F22)/($C$9) -> 51.82982751 | G31: =(((Summary!$B$18-($C$8*G29))*G30)+G22)/($C$9) -> 45.5263551 | H31: =(((Summary!$B$18-($C$8*H29))*H30)+H22)/($C$9) -> 41.16699998 | I31: =(((Summary!$B$18-($C$8*I29))*I30)+I22)/($C$9) -> 37.93276332 | J31: =(((Summary!$B$18-($C$8*J29))*J30)+J22)/($C$9) -> 35.41296275 | K31: =(((Summary!$B$18-($C$8*K29))*K30)+K22)/($C$9) -> 33.37848404 | L31: =(((Summary!$B$18-($C$8*L29))*L30)+L22)/($C$9) -> 31.69107427 | M31: =SUM(C31:L31)/$L$28 -> 56.02048025
A32: PVF | B32: - | C32: =1/(1+$D$2)^C28 -> 0.9090909091 | D32: =1/(1+$D$2)^D28 -> 0.826446281 | E32: 0.7513148009 | F32: 0.6830134554 | G32: 0.6209213231 | H32: 0.5644739301 | I32: 0.5131581182 | J32: 0.4665073802 | K32: 0.4240976184 | L32: 0.3855432894
A33: CRF | B33: - | C33: =($D$2*(1+$D$2)^C28)/((1+$D$2)^C28-1) -> 1.1 | D33: =($D$2*(1+$D$2)^D28)/((1+$D$2)^D28-1) -> 0.5761904762 | E33: 0.4021148036 | F33: 0.3154708037 | G33: 0.2637974808 | H33: 0.2296073804 | I33: 0.2054054997 | J33: 0.1874440176 | K33: 0.1736405391 | L33: 0.1627453949
A34: e-HCFV (HT) | B34: ₹/km | C34: =(((Summary!$C$18-($D$8*C32))*C33)+C23)/($D$9) -> 228.3132272 | D34: =(((Summary!$C$18-($D$8*D32))*D33)+D23)/($D$9) -> 130.6218393 | E34: =(((Summary!$C$18-($D$8*E32))*E33)+E23)/($D$9) -> 97.53977942 | F34: =(((Summary!$C$18-($D$8*F32))*F33)+F23)/($D$9) -> 80.65169533 | G34: =(((Summary!$C$18-($D$8*G32))*G33)+G23)/($D$9) -> 70.27136055 | H34: =(((Summary!$C$18-($D$8*H32))*H33)+H23)/($D$9) -> 63.16763614 | I34: =(((Summary!$C$18-($D$8*I32))*I33)+I23)/($D$9) -> 57.95387623 | J34: =(((Summary!$C$18-($D$8*J32))*J33)+J23)/($D$9) -> 53.93526537 | K34: =(((Summary!$C$18-($D$8*K32))*K33)+K23)/($D$9) -> 50.72458646 | L34: =(((Summary!$C$18-($D$8*L32))*L33)+L23)/($D$9) -> 48.08851862 | M34: =SUM(C34:L34)/$L$28 -> 88.12677846
A35: PVF | B35: - | C35: =1/(1+$E$2)^C28 -> 0.9090909091 | D35: =1/(1+$E$2)^D28 -> 0.826446281 | E35: 0.7513148009 | F35: 0.6830134554 | G35: 0.6209213231 | H35: 0.5644739301 | I35: 0.5131581182 | J35: 0.4665073802 | K35: 0.4240976184 | L35: 0.3855432894
A36: CRF | B36: - | C36: =($E$2*(1+$E$2)^C28)/((1+$E$2)^C28-1) -> 1.1 | D36: =($E$2*(1+$E$2)^D28)/((1+$E$2)^D28-1) -> 0.5761904762 | E36: 0.4021148036 | F36: 0.3154708037 | G36: 0.2637974808 | H36: 0.2296073804 | I36: 0.2054054997 | J36: 0.1874440176 | K36: 0.1736405391 | L36: 0.1627453949
A37: D-HCFV (LT) | B37: ₹/km | C37: =(((Summary!$D$18-($E$8*C35))*C36)+C24)/($E$9) -> 78.75998258 | D37: =(((Summary!$D$18-($E$8*D35))*D36)+D24)/($E$9) -> 54.18686798 | E37: =(((Summary!$D$18-($E$8*E35))*E36)+E24)/($E$9) -> 45.20717819 | F37: =(((Summary!$D$18-($E$8*F35))*F36)+F24)/($E$9) -> 40.18113215 | G37: =(((Summary!$D$18-($E$8*G35))*G36)+G24)/($E$9) -> 36.77672214 | H37: =(((Summary!$D$18-($E$8*H35))*H36)+H24)/($E$9) -> 34.21354148 | I37: =(((Summary!$D$18-($E$8*I35))*I36)+I24)/($E$9) -> 32.15473634 | J37: =(((Summary!$D$18-($E$8*J35))*J36)+J24)/($E$9) -> 30.42997477 | K37: =(((Summary!$D$18-($E$8*K35))*K36)+K24)/($E$9) -> 28.94308793 | L37: =(((Summary!$D$18-($E$8*L35))*L36)+L24)/($E$9) -> 27.63511408 | M37: =SUM(C37:L37)/$L$28 -> 40.84883376
A38: PVF | B38: - | C38: =1/(1+$F$2)^C28 -> 0.9090909091 | D38: =1/(1+$F$2)^D28 -> 0.826446281 | E38: 0.7513148009 | F38: 0.6830134554 | G38: 0.6209213231 | H38: 0.5644739301 | I38: 0.5131581182 | J38: 0.4665073802 | K38: 0.4240976184 | L38: 0.3855432894
A39: CRF | B39: - | C39: =($F$2*(1+$F$2)^C28)/((1+$F$2)^C28-1) -> 1.1 | D39: =($F$2*(1+$F$2)^D28)/((1+$F$2)^D28-1) -> 0.5761904762 | E39: 0.4021148036 | F39: 0.3154708037 | G39: 0.2637974808 | H39: 0.2296073804 | I39: 0.2054054997 | J39: 0.1874440176 | K39: 0.1736405391 | L39: 0.1627453949
A40: D-HCFV (HT) | B40: ₹/km | C40: =(((Summary!$E$18-($F$8*C38))*C39)+C25)/($F$9) -> 96.25897129 | D40: =(((Summary!$E$18-($F$8*D38))*D39)+D25)/($F$9) -> 67.38270106 | E40: =(((Summary!$E$18-($F$8*E38))*E39)+E25)/($F$9) -> 56.71731954 | F40: =(((Summary!$E$18-($F$8*F38))*F39)+F25)/($F$9) -> 50.67733556 | G40: =(((Summary!$E$18-($F$8*G38))*G39)+G25)/($F$9) -> 46.5403297 | H40: =(((Summary!$E$18-($F$8*H38))*H39)+H25)/($F$9) -> 43.39479593 | I40: =(((Summary!$E$18-($F$8*I38))*I39)+I25)/($F$9) -> 40.84694509 | J40: =(((Summary!$E$18-($F$8*J38))*J39)+J25)/($F$9) -> 38.69738097 | K40: =(((Summary!$E$18-($F$8*K38))*K39)+K25)/($F$9) -> 36.83330566 | L40: =(((Summary!$E$18-($F$8*L38))*L39)+L25)/($F$9) -> 35.18538536 | M40: =SUM(C40:L40)/$L$28 -> 51.25344701
